bitfinex/quotes_SOLUSD_20250919
["timestamp","ask_amount","ask_price","bid_price","bid_amount"]
[1758245182413,0.06,247.19,247.18,36.12563476]
[1758245182591,0.06,247.19,247.18,36.10563476]
[1758245184638,0.06,247.19,247.18,36.06563476]
[1758245187636,0.06,247.19,247.18,36.02563476]
[1758245189546,0.06,247.19,247.18,4.04563476]
[1758245189846,0.72,247.19,247.18,4.04563476]
[1758245190533,0.72,247.19,247.18,35.98563476]
[1758245190737,0.06,247.19,247.18,4.04563476]
[1758245191035,0.72,247.19,247.18,4.04563476]
[1758245191236,0.72,247.19,247.18,35.98563476]
[1758245191546,0.72,247.19,247.18,4.04563476]
[1758245191733,0.72,247.19,247.18,35.98563476]
[1758245192241,0.06,247.19,247.18,35.98563476]
[1758245192445,0.72,247.19,247.18,35.98563476]
[1758245192742,0.72,247.19,247.18,4.04563476]
[1758245192947,0.72,247.19,247.18,35.96563476]
[1758245193355,0.72,247.19,247.18,4.04563476]
[1758245193552,0.72,247.19,247.18,35.96563476]
[1758245194132,0.72,247.19,247.18,35.94563476]
[1758245195253,0.06,247.19,247.18,35.94563476]
[1758245195552,0.72,247.19,247.18,35.94563476]
[1758245196640,0.72,247.19,247.18,4.04563476]
[1758245196840,0.72,247.19,247.18,35.92563476]
[1758245197239,0.06,247.19,247.18,35.92563476]
[1758245197752,0.72,247.19,247.18,4.04563476]
[1758245197932,0.72,247.19,247.18,35.92563476]
[1758245198859,0.06,247.19,247.18,35.92563476]
[1758245199335,0.72,247.19,247.18,35.92563476]
[1758245199534,0.72,247.19,247.18,4.04563476]
[1758245199775,0.72,247.19,247.18,35.88563476]
[1758245200261,0.06,247.19,247.18,35.88563476]
[1758245200939,0.06,247.19,247.18,4.04563476]
[1758245201137,0.72,247.19,247.18,35.88563476]
[1758245201335,0.06,247.19,247.18,35.88563476]
[1758245204766,0.06,247.19,247.18,4.04563476]
[1758245205264,0.06,247.19,247.18,35.82563476]
[1758245208056,0.06,247.19,247.18,36.34563476]
[1758245210937,0.06,247.19,247.18,35.78563476]
[1758245212566,0.06,247.19,247.18,36.30563476]
[1758245212765,0.06,247.19,247.18,35.76563476]
[1758245212962,0.06,247.19,247.18,36.30563476]
[1758245213854,0.06,247.19,247.18,4.58563476]
[1758245214060,0.06,247.19,247.18,36.30563476]
[1758245214447,0.06,247.19,247.18,36.5899579]
[1758245214849,0.06,247.22,247.21,26.0]
[1758245215045,0.06,247.22,247.21,58.24]
[1758245215766,0.06,247.22,247.21,62.2851438]
[1758245216645,0.06,247.22,247.21,62.56946694]
[1758245217573,0.06,247.24,247.22,0.28432314]
[1758245217765,0.06,247.28,247.22,0.28432314]
[1758245217766,0.06,247.28,247.26,26.0]
[1758245217966,0.06,247.28,247.27,35.74416225]
[1758245218159,0.06,247.28,247.27,36.56848539]
[1758245218353,0.06,247.31,247.3,26.0]
[1758245218558,0.06,247.31,247.3,57.7]
[1758245218777,0.06,247.31,247.3,58.24]
[1758245219283,1e-08,247.31,247.3,58.52432314]
[1758245219456,1e-08,247.31,247.3,26.82432314]
[1758245219647,1e-08,247.31,247.3,58.52432314]
[1758245219947,1e-08,247.31,247.3,62.56799479]
[1758245220380,1e-08,247.31,247.3,30.86799479]
[1758245220550,1e-08,247.31,247.3,62.54799479]
[1758245220752,0.06,247.35,247.31,0.28432314]
[1758245220950,0.06,247.35,247.34,26.0]
[1758245221173,0.06,247.37,247.36,26.28432314]
[1758245221375,0.06,247.37,247.36,57.96432314]
[1758245221583,0.06,247.37,247.36,58.50432314]
[1758245221868,0.06,247.38,247.37,4.32685052]
[1758245222067,0.06,247.38,247.37,4.86685052]
[1758245222283,0.66,247.48,247.38,0.28432314]
[1758245222460,0.66,247.43,247.38,57.96432314]
[1758245223260,0.66,247.45,247.38,58.50432314]
[1758245223769,0.66,247.45,247.38,26.82432314]
[1758245224075,0.86,247.39,247.38,31.66]
[1758245224275,0.86,247.39,247.35,30.04271796]
[1758245224576,0.86,247.39,247.32,10.10835259]
[1758245224577,0.2,247.39,247.38,26.0]
[1758245224873,0.2,247.39,247.38,57.7]
[1758245225050,0.86,247.39,247.38,57.7]
[1758245225254,0.86,247.39,247.38,31.7]
[1758245225860,0.86,247.39,247.35,26.0]
[1758245226057,0.66,247.38,247.36,31.7]
[1758245226262,0.66,247.37,247.35,26.0]
[1758245226555,0.2,247.39,247.36,31.68]
[1758245227064,0.66,247.38,247.36,31.68]
[1758245227272,0.66,247.37,247.36,31.68]
[1758245227666,0.66,247.37,247.35,30.04283098]
[1758245227880,0.66,247.36,247.35,26.0]
[1758245228066,0.66,247.36,247.35,57.66]
[1758245228871,0.66,247.36,247.24,0.54]
[1758245229176,0.66,247.36,247.25,31.66]
[1758245229364,0.66,247.35,247.28,26.0]
[1758245229680,0.66,247.34,247.32,26.0]
[1758245229893,15.86606489,247.38,247.33,31.68]
[1758245230383,13.59559401,247.36,247.33,31.68]
[1758245230584,0.66,247.35,247.33,31.68]
[1758245230784,0.66,247.34,247.33,31.68]
[1758245232783,0.66,247.34,247.27,26.0]
[1758245232967,0.66,247.34,247.28,31.66]
[1758245232968,14.25559401,247.33,247.28,31.66]
[1758245233157,2.93047088,247.32,247.25,30.04448938]
[1758245233370,0.66,247.31,247.26,31.66]
[1758245233564,0.66,247.31,247.26,57.66]
[1758245233791,0.66,247.3,247.26,57.66]
[1758245234086,0.66,247.32,247.26,58.2]
[1758245234292,0.66,247.32,247.26,57.66]
[1758245234887,0.66,247.32,247.27,4.04416225]
[1758245235070,0.66,247.32,247.28,31.66]
[1758245235266,0.66,247.31,247.27,4.04416225]
[1758245235481,0.66,247.3,247.29,31.64]
[1758245235683,0.66,247.33,247.29,31.64]
[1758245236066,13.59559401,247.36,247.29,31.64]
[1758245236262,0.66,247.35,247.29,31.64]
[1758245236874,0.66,247.35,247.3,4.04367165]
[1758245237073,0.66,247.34,247.31,31.64]
[1758245237381,0.66,247.37,247.31,31.64]
[1758245237577,0.66,247.37,247.31,57.64]
[1758245237985,0.72,247.38,247.31,57.64]
[1758245238686,0.72,247.38,247.32,31.62]
[1758245239180,0.72,247.38,247.33,4.04318117]
[1758245239384,0.66,247.37,247.34,31.62]
[1758245239584,0.06,247.38,247.34,31.62]
[1758245239782,0.66,247.36,247.34,31.62]
[1758245239970,0.66,247.35,247.34,31.62]
[1758245240784,0.66,247.37,247.34,31.62]
[1758245240981,0.06,247.38,247.34,35.66296807]
[1758245241171,0.66,247.37,247.34,35.66296807]
[1758245241787,0.06,247.38,247.34,35.66296807]
[1758245241985,0.66,247.37,247.34,35.66296807]
[1758245242287,0.66,247.36,247.34,35.66296807]
[1758245242669,0.66,247.36,247.32,4.04334465]
[1758245242898,0.66,247.36,247.33,31.6]
[1758245243889,0.66,247.35,247.32,4.04334465]
[1758245244086,0.66,247.35,247.34,31.6]
[1758245244486,0.66,247.35,247.32,4.04334465]
[1758245244687,0.66,247.35,247.33,31.6]
[1758245244993,0.65,247.34,247.33,26.0]
[1758245245173,0.65,247.34,247.33,31.6]
[1758245247491,0.65,247.34,247.31,4.04350582]
[1758245247714,0.65,247.33,247.3,30.04364006]
[1758245247887,15.86606489,247.37,247.32,31.56]
[1758245248480,0.65,247.36,247.32,31.56]
[1758245248797,0.65,247.35,247.32,31.56]
[1758245248990,13.59559401,247.33,247.25,4.04448938]
[1758245249177,0.65,247.32,247.26,31.56]
[1758245249497,0.65,247.32,247.29,26.0]
[1758245249787,0.65,247.32,247.3,31.58]
[1758245250769,13.59559401,247.37,247.3,31.58]
[1758245250982,13.59559401,247.33,247.3,31.58]
[1758245252088,0.06,247.38,247.3,35.62357954]
[1758245252288,13.59559401,247.35,247.3,35.62357954]
[1758245252481,0.65,247.34,247.3,35.62357954]
[1758245253012,0.65,247.33,247.31,31.56]
[1758245255279,13.59559401,247.35,247.31,35.60348708]
[1758245255498,14.24559401,247.35,247.31,35.60348708]
[1758245256482,13.59559401,247.36,247.31,35.60348708]
[1758245256682,13.59559401,247.36,247.31,36.14348708]
[1758245257186,0.65,247.37,247.31,35.60348708]
[1758245257390,0.06,247.38,247.32,0.54]
[1758245257588,0.06,247.38,247.33,31.52]
[1758245258003,0.71,247.38,247.33,31.52]
[1758245258298,0.65,247.37,247.34,31.52]
[1758245260600,0.06,247.38,247.31,4.04350814]
[1758245260601,13.59559401,247.36,247.31,4.04350814]
[1758245260794,0.65,247.35,247.32,31.52]
[1758245260996,0.65,247.34,247.32,31.52]
[1758245261310,0.65,247.33,247.32,31.52]
[1758245261492,0.65,247.33,247.3,26.0]
[1758245261684,0.65,247.33,247.31,31.52]
[1758245262015,0.65,247.32,247.29,26.03]
[1758245262182,0.65,247.32,247.3,31.52]
[1758245263082,13.59559401,247.33,247.3,31.52]
[1758245263504,14.24559401,247.33,247.3,31.52]
[1758245264712,14.24559401,247.33,247.29,0.03]
[1758245264913,14.24559401,247.33,247.31,31.52]
[1758245265605,0.65,247.32,247.31,31.52]
[1758245267006,13.59559401,247.33,247.31,31.52]
[1758245267211,14.24559401,247.33,247.31,31.52]
[1758245267909,0.65,247.32,247.31,31.52]
[1758245269891,13.59559401,247.33,247.31,31.52]
[1758245270224,14.24559401,247.33,247.31,31.52]
[1758245271001,13.59559401,247.34,247.31,31.52]
[1758245271212,14.24559401,247.34,247.31,31.52]
[1758245271524,0.65,247.33,247.31,31.52]
[1758245272084,0.65,247.34,247.31,31.52]
[1758245272290,0.65,247.33,247.31,31.52]
[1758245276616,0.65,247.33,247.3,0.03]
[1758245276822,0.65,247.33,247.31,31.52]
[1758245278017,17.63818805,247.37,247.31,31.52]
[1758245278319,13.59559401,247.34,247.3,4.07359526]
[1758245278520,0.66,247.34,247.31,31.52]
[1758245279396,0.66,247.34,247.3,4.07359526]
[1758245279719,0.66,247.33,247.31,31.52]
[1758245281018,1.45219533,247.37,247.3,0.03]
[1758245281223,0.66,247.32,247.3,0.03]
[1758245281512,0.66,247.32,247.3,31.55]
[1758245281718,0.66,247.31,247.3,31.55]
[1758245283121,0.66,247.31,247.3,0.03]
[1758245283316,0.66,247.31,247.3,31.55]
[1758245283816,0.66,247.33,247.3,31.55]
[1758245283996,0.66,247.32,247.3,31.55]
[1758245284914,13.59559401,247.33,247.3,31.55]
[1758245285312,0.66,247.33,247.3,35.59367164]
[1758245286219,0.66,247.35,247.3,35.59367164]
[1758245286402,13.65559401,247.38,247.3,35.59367164]
[1758245286714,0.06,247.38,247.31,0.54]
[1758245286917,0.72,247.38,247.31,0.54]
[1758245287420,0.72,247.38,247.32,31.52]
[1758245287817,0.72,247.38,247.33,4.04318117]
[1758245288205,0.06,247.38,247.33,4.04318117]
[1758245288407,0.66,247.37,247.33,4.04318117]
[1758245288714,0.66,247.37,247.34,31.52]
[1758245289726,13.59559401,247.37,247.34,35.56293975]
[1758245290028,13.59559401,247.37,247.35,31.52]
[1758245290226,0.72,247.38,247.35,31.52]
[1758245290227,0.06,247.38,247.35,32.06]
[1758245291224,0.06,247.38,247.36,0.54]
[1758245291628,0.06,247.38,247.37,0.54]
[1758245291928,0.06,247.38,247.36,4.04269081]
[1758245292127,0.06,247.38,247.36,4.58269081]
[1758245293414,0.06,247.38,247.36,4.04269081]
[1758245295033,0.06,247.38,247.35,4.04285425]
[1758245295225,0.06,247.38,247.36,31.52]
[1758245295927,0.06,247.38,247.36,32.06]
[1758245296911,0.06,247.38,247.36,31.52]
[1758245297109,0.06,247.38,247.36,35.56266622]
[1758245297725,0.06,247.38,247.36,4.04266622]
[1758245297934,0.06,247.38,247.37,31.52]
[1758245298733,0.06,247.38,247.33,1.61763219]
[1758245298920,0.66,247.37,247.31,0.54]
[1758245299117,0.66,247.37,247.35,26.0]
[1758245299417,0.66,247.36,247.33,26.0]
[1758245299614,0.66,247.35,247.33,31.52]
[1758245299815,0.66,247.34,247.33,31.52]
[1758245300018,0.66,247.34,247.31,26.0]
[1758245300211,0.66,247.34,247.3,4.07352201]
[1758245300212,13.59559401,247.37,247.32,31.52]
[1758245300424,0.66,247.33,247.3,0.03]
[1758245301041,13.59559401,247.32,247.3,0.03]
[1758245301412,0.66,247.31,247.3,0.03]
[1758245301606,14.25559401,247.31,247.3,0.03]
[1758245302634,18.29910215,247.31,247.3,0.03]
[1758245303011,14.25559401,247.31,247.3,0.03]
[1758245303217,18.29910215,247.31,247.3,0.03]
[1758245303540,14.25559401,247.31,247.3,0.03]
[1758245318654,18.29910215,247.31,247.3,0.03]
[1758245323839,14.25559401,247.31,247.3,0.03]
[1758245324037,0.68,247.35,247.3,0.57]
[1758245324359,13.59559401,247.37,247.31,0.54]
[1758245324649,13.59559401,247.37,247.31,32.04]
[1758245324828,13.59559401,247.37,247.32,1.61789391]
[1758245325030,14.27559401,247.37,247.32,1.61789391]
[1758245325326,14.27559401,247.37,247.32,2.15789391]
[1758245325636,13.59559401,247.37,247.33,0.54]
[1758245325829,0.06,247.38,247.33,0.54]
[1758245326029,0.68,247.37,247.33,12.13371352]
[1758245327424,13.59559401,247.35,247.3,0.03]
[1758245327653,0.68,247.34,247.3,0.03]
[1758245327848,13.59559401,247.33,247.31,12.13567687]
[1758245328024,0.68,247.32,247.3,0.03]
[1758245328531,0.68,247.32,247.3,12.16567687]
[1758245329346,0.68,247.32,247.3,0.03]
[1758245329539,13.59559401,247.33,247.3,0.03]
[1758245329750,14.27559401,247.33,247.3,0.03]
[1758245329940,13.59559401,247.33,247.3,0.03]
[1758245330143,0.68,247.33,247.3,0.03]
[1758245330930,13.59559401,247.35,247.3,0.57]
[1758245331126,13.59559401,247.37,247.3,0.03]
[1758245331354,0.68,247.33,247.3,12.1661678]
[1758245332049,18.31824647,247.37,247.31,0.54]
[1758245332349,18.31824647,247.37,247.3,12.1661678]
[1758245332531,13.59559401,247.35,247.3,12.1661678]
[1758245332734,0.68,247.35,247.3,12.1661678]
[1758245332943,0.68,247.34,247.3,12.1661678]
[1758245334536,0.68,247.34,247.3,0.03]
[1758245334946,0.68,247.34,247.31,12.13518597]
[1758245335346,13.59559401,247.35,247.31,12.13518597]
[1758245335554,0.66,247.34,247.31,12.13518597]
[1758245336350,17.63845956,247.35,247.31,12.13518597]
[1758245336546,18.29845956,247.35,247.31,12.13518597]
[1758245337359,14.25559401,247.35,247.31,12.13518597]
[1758245337547,4.70266254,247.37,247.31,12.67518597]
[1758245337765,4.04266254,247.37,247.31,12.13518597]
[1758245337953,13.59559401,247.35,247.3,0.03]
[1758245338247,13.59559401,247.35,247.31,12.13518597]
[1758245338446,0.66,247.34,247.31,12.13518597]
[1758245339661,0.66,247.33,247.31,12.13518597]
[1758245339865,13.59559401,247.35,247.31,12.13518597]
[1758245340064,0.66,247.34,247.31,12.13518597]
[1758245341070,13.59559401,247.35,247.31,12.13518597]
[1758245341259,0.66,247.37,247.31,12.67518597]
[1758245341444,0.06,247.38,247.31,12.13518597]
[1758245341643,13.59559401,247.36,247.31,12.13518597]
[1758245341938,0.66,247.36,247.31,12.67518597]
[1758245342162,0.66,247.36,247.31,0.54]
[1758245342552,0.66,247.36,247.32,12.13469512]
[1758245342966,0.66,247.36,247.31,4.58345136]
[1758245343267,0.66,247.36,247.33,12.13469512]
[1758245344065,13.59559401,247.37,247.33,12.13469512]
[1758245344256,13.59559401,247.37,247.34,0.54]
[1758245344653,13.65559401,247.38,247.33,0.54]
[1758245344854,14.31559401,247.38,247.33,0.54]
[1758245345054,14.31559401,247.38,247.34,12.1342043]
[1758245345255,0.66,247.37,247.34,12.1342043]
[1758245345459,0.66,247.37,247.31,4.58349516]
[1758245345658,0.66,247.37,247.33,12.1342043]
[1758245345966,0.66,247.37,247.31,4.58349516]
[1758245346345,0.66,247.37,247.32,12.1342043]
[1758245346760,0.66,247.37,247.32,12.6742043]
[1758245347167,0.66,247.37,247.32,16.71746833]
[1758245347359,13.65559401,247.38,247.33,0.54]
[1758245347558,14.31559401,247.38,247.33,0.54]
[1758245347962,0.06,247.38,247.34,0.54]
[1758245348350,0.06,247.38,247.35,0.54]
[1758245348764,0.06,247.38,247.36,0.54]
[1758245349070,0.06,247.38,247.34,47.65657962]
[1758245349071,0.06,247.38,247.34,36.0628661]
[1758245349275,0.06,247.38,247.35,12.67273208]
[1758245349766,0.06,247.38,247.35,0.54]
[1758245349975,0.06,247.38,247.36,1.61769761]
[1758245350675,0.06,247.38,247.37,0.54]
[1758245350852,0.06,247.38,247.37,4.04252738]
[1758245351378,0.06,247.38,247.37,5.66002875]
[1758245352355,0.06,247.38,247.37,6.20002875]
[1758245356977,0.06,247.38,247.37,5.66002875]
[1758245358867,0.06,247.38,247.37,6.20002875]
[1758245359366,0.06,247.38,247.37,5.66002875]
[1758245360457,0.06,247.38,247.37,6.20002875]
[1758245361760,0.06,247.38,247.37,5.66002875]
[1758245363275,0.06,247.38,247.37,6.20002875]
[1758245363580,0.06,247.38,247.37,5.66002875]
[1758245365070,0.06,247.38,247.37,37.10002875]
[1758245365888,0.06,247.38,247.37,5.66002875]
[1758245366088,0.06,247.38,247.37,37.10002875]
[1758245368198,0.72,247.38,247.37,59.05750137]
[1758245368375,0.06,247.38,247.37,63.10002875]
[1758245370101,0.06,247.38,247.37,63.64002875]
[1758245371164,0.06,247.38,247.37,63.92435189]
[1758245371972,0.06,247.38,247.37,63.95435189]
[1758245379070,0.06,247.38,247.37,31.97435189]
[1758245379476,0.06,247.38,247.37,63.39435189]
[1758245380592,0.06,247.38,247.37,63.93435189]
[1758245381091,0.06,247.38,247.37,63.39435189]
[1758245383587,0.06,247.38,247.37,31.97435189]
[1758245383785,0.72,247.38,247.37,27.64750137]
[1758245383987,0.72,247.38,247.37,59.06750137]
[1758245385000,0.72,247.38,247.37,33.06750137]
[1758245385176,0.72,247.38,247.37,27.64750137]
[1758245385372,0.72,247.38,247.37,59.06750137]
[1758245387775,0.06,247.38,247.37,37.39435189]
[1758245391880,0.06,247.38,247.37,37.93435189]
[1758245392083,1e-08,247.38,247.37,78.83419863]
[1758245392420,1e-08,247.38,247.37,83.06513577]
[1758245392613,0.06,247.41,247.4,26.28432314]
[1758245392839,0.06,247.41,247.4,58.08852685]
[1758245393120,0.06,247.41,247.4,58.62852685]
[1758245393417,0.06,247.41,247.4,60.2452437]
[1758245393620,0.06,247.41,247.4,64.28728088]
[1758245397733,0.06,247.41,247.4,63.74728088]
[1758245397941,0.06,247.41,247.4,64.28728088]
[1758245400343,1e-08,247.41,247.4,64.28728088]
[1758245400633,0.1,247.49,247.43,26.28432314]
[1758245400819,0.1,247.49,247.43,58.62847785]
[1758245401018,0.1,247.49,247.44,0.28432314]
[1758245401228,0.79,247.49,247.48,26.0]
[1758245401431,0.79,247.49,247.48,57.4]
[1758245402029,0.79,247.49,247.48,31.6572514]
[1758245402235,0.79,247.49,247.48,63.0572514]
[1758245403225,0.79,247.49,247.48,63.34157454]
[1758245403226,0.1,247.49,247.48,63.34157454]
[1758245406849,0.16,247.49,247.48,63.34157454]
[1758245408951,0.85,247.49,247.48,63.32157454]
[1758245409624,0.16,247.49,247.48,63.32157454]
[1758245409825,0.85,247.49,247.48,31.94157454]
[1758245410044,0.85,247.49,247.48,32.99652084]
[1758245410343,0.85,247.49,247.48,1.61652084]
[1758245410553,0.85,247.49,247.48,32.99652084]
[1758245410729,0.85,247.49,247.47,31.38]
[1758245411050,0.69,247.48,247.47,32.9967822]
[1758245412033,0.69,247.48,247.47,5.65767604]
[1758245412243,0.16,247.49,247.47,37.03767604]
[1758245412433,0.16,247.49,247.48,0.28432314]
[1758245413144,0.16,247.49,247.48,1.90077865]
[1758245413850,0.16,247.49,247.48,6.48150921]
[1758245414033,0.16,247.49,247.48,5.94150921]
[1758245415541,1e-08,247.49,247.48,6.88558226]
[1758245415745,1e-08,247.49,247.48,11.1165194]
[1758245420035,1e-08,247.49,247.48,24.71211341]
[1758245420240,0.06,247.52,247.51,26.28432314]
[1758245420241,1e-08,247.52,247.51,26.28432314]
[1758245420454,1e-08,247.52,247.51,58.04834721]
[1758245420768,1e-08,247.52,247.51,58.58834721]
[1758245420940,1e-08,247.52,247.51,60.20428031]
[1758245421347,1e-08,247.52,247.51,64.2445211]
[1758245421539,1e-08,247.52,247.51,63.7045211]
[1758245425166,0.67000001,247.52,247.51,63.15833546]
[1758245425341,0.67000001,247.52,247.51,37.15833546]
[1758245425543,0.67000001,247.52,247.51,37.30049703]
[1758245425744,0.67000001,247.52,247.51,37.01617389]
[1758245426154,0.67000001,247.52,247.51,37.15833546]
[1758245426357,1e-08,247.52,247.51,5.94049703]
[1758245426544,1e-08,247.52,247.51,37.30049703]
[1758245428568,1e-08,247.52,247.51,37.7045211]
[1758245428780,1e-08,247.52,247.51,38.2445211]
[1758245428954,1e-08,247.52,247.51,37.7045211]
[1758245431263,1e-08,247.52,247.51,38.2445211]
[1758245431469,0.06,247.54,247.53,26.28432314]
[1758245431668,0.2,247.57,247.54,0.28432314]
[1758245431846,0.2,247.57,247.56,0.28432314]
[1758245432349,0.2,247.57,247.56,1.89999516]
[1758245432760,0.2,247.57,247.56,5.93941994]
[1758245436583,0.87,247.57,247.56,5.93941994]
[1758245438853,0.2,247.57,247.56,5.93941994]
[1758245439058,0.87,247.57,247.56,5.93941994]
[1758245439577,0.87,247.57,247.56,37.27941994]
[1758245439983,0.2,247.57,247.56,37.27941994]
[1758245441384,0.87,247.57,247.56,37.27941994]
[1758245442380,0.2,247.57,247.56,37.27941994]
[1758245444775,0.2,247.57,247.56,5.93941994]
[1758245444980,0.2,247.57,247.56,37.27941994]
[1758245447182,0.2,247.57,247.56,37.25941994]
[1758245450510,1e-08,247.57,247.56,57.25941994]
[1758245450663,1e-08,247.57,247.56,57.79941994]
[1758245451411,1e-08,247.57,247.56,57.25941994]
[1758245453476,1e-08,247.57,247.56,37.25941994]
[1758245453797,1e-08,247.57,247.56,57.25941994]
[1758245455298,0.69000001,247.57,247.56,57.25941994]
[1758245455484,1e-08,247.57,247.56,57.25941994]
[1758245456688,1e-08,247.57,247.56,57.79941994]
[1758245456883,0.06,247.6,247.59,26.28432314]
[1758245457083,1e-08,247.6,247.59,57.60432314]
[1758245457496,1e-08,247.6,247.59,59.21973416]
[1758245458169,1e-08,247.6,247.59,59.62362769]
[1758245458582,1e-08,247.6,247.59,60.16362769]
[1758245458784,1e-08,247.6,247.59,64.20256302]
[1758245458969,1e-08,247.6,247.59,63.66256302]
[1758245459777,1e-08,247.6,247.59,77.79815703]
[1758245460588,1e-08,247.62,247.59,87.89549537]
[1758245460788,1e-08,247.62,247.59,87.49160184]
[1758245461208,1e-08,247.63,247.62,26.0]
[1758245461383,1e-08,247.63,247.62,57.58432314]
[1758245461688,1e-08,247.64,247.63,0.28432314]
[1758245462192,1e-08,247.64,247.63,1.89940803]
[1758245462384,0.69000001,247.64,247.63,1.89940803]
[1758245462800,0.69000001,247.64,247.63,5.93769095]
[1758245464304,1e-08,247.64,247.63,37.23769095]
[1758245464504,0.69000001,247.64,247.63,37.23769095]
[1758245467087,0.69000001,247.64,247.63,5.93769095]
[1758245467491,0.69000001,247.64,247.63,37.23769095]
[1758245468079,0.69000001,247.64,247.63,5.93769095]
[1758245468280,0.69000001,247.64,247.63,37.23769095]
[1758245473483,1e-08,247.64,247.63,37.23769095]
[1758245474482,0.69000001,247.64,247.63,37.23769095]
[1758245474685,1e-08,247.64,247.63,37.23769095]
[1758245474996,1e-08,247.64,247.63,5.93769095]
[1758245475188,1e-08,247.64,247.63,37.21769095]
[1758245476180,1e-08,247.64,247.63,37.75769095]
[1758245476383,1e-08,247.64,247.63,5.93769095]
[1758245476579,1e-08,247.64,247.63,37.21769095]
[1758245477186,0.06,247.67,247.63,37.62151924]
[1758245477505,0.06,247.67,247.66,26.28432314]
[1758245477678,0.06,247.67,247.66,61.60211688]
[1758245478100,0.75,247.67,247.66,63.21707136]
[1758245480404,0.75,247.67,247.66,31.93707136]
[1758245480585,0.75,247.67,247.66,63.21707136]
[1758245480786,0.75,247.67,247.66,31.93707136]
[1758245481098,0.75,247.67,247.66,63.21707136]
[1758245481308,0.75,247.67,247.66,63.07490979]
[1758245482121,0.75,247.67,247.66,59.17927762]
[1758245482414,0.75,247.67,247.66,63.21707136]
[1758245484418,0.06,247.67,247.66,63.21707136]
[1758245485086,0.72,247.67,247.66,63.21707136]
[1758245485621,0.06,247.67,247.66,63.21707136]
[1758245487502,0.72,247.67,247.66,63.21707136]
[1758245488008,0.06,247.67,247.66,63.21707136]
[1758245488542,0.72,247.67,247.66,63.21707136]
[1758245489132,0.06,247.67,247.66,63.21707136]
[1758245489705,0.72,247.67,247.66,63.21707136]
[1758245490927,0.72,247.67,247.66,31.93707136]
[1758245491135,0.72,247.67,247.66,63.19707136]
[1758245491426,0.72,247.67,247.66,63.05490979]
[1758245491826,0.72,247.67,247.66,63.19707136]
[1758245497030,0.06,247.67,247.66,63.19707136]
[1758245498621,0.72,247.67,247.66,63.19707136]
[1758245499030,0.72,247.67,247.66,59.15927762]
[1758245499251,0.72,247.67,247.66,1.89927762]
[1758245499440,0.72,247.67,247.66,33.15927762]
[1758245500241,0.72,247.67,247.66,33.01711605]
[1758245500431,0.72,247.67,247.66,37.19707136]
[1758245500741,0.06,247.67,247.66,37.19707136]
[1758245500920,0.72,247.67,247.66,37.19707136]
[1758245501622,0.72,247.67,247.66,33.15927762]
[1758245502026,0.72,247.67,247.66,27.61495448]
[1758245502230,0.72,247.67,247.66,58.87495448]
[1758245503532,0.72,247.67,247.66,62.91274822]
[1758245503844,0.06,247.67,247.66,63.19707136]
[1758245506047,0.06,247.67,247.66,63.73707136]
[1758245508754,0.06,247.67,247.66,63.19707136]
[1758245509339,0.72,247.67,247.66,31.65274822]
[1758245509655,0.72,247.67,247.66,63.19707136]